[Event "*** Titled Tuesday 3|2 Blitz"]
[Site "Chess.com"]
[Date "2016.10.04"]
[Round "1"]
[White "cstefan"]
[Black "APL2001"]
[Result "0-1"]
[WhiteElo "2011"]
[BlackElo "2417"]
[TimeControl "180+2"]
[EndTime "11:05:09 PDT"]
[Termination "APL2001 won by resignation"]

1. e4 {[%clk 0:02:59.2]} 1... Nf6 {[%clk 0:03:00.1]} 2. Nc3 {[%clk 0:02:59.6]}
2... e5 {[%clk 0:03:00.9]} 3. Nf3 {[%clk 0:03:00.1]} 3... Nc6 {[%clk 0:03:02]}
4. Bb5 {[%clk 0:03:00.6]} 4... Bd6 {[%clk 0:03:02.7]} 5. O-O {[%clk 0:03:00.6]}
5... O-O {[%clk 0:03:01.2]} 6. d3 {[%clk 0:03:01.8]} 6... h6 {[%clk 0:03:01.7]}
7. a3 {[%clk 0:03:02.6]} 7... a6 {[%clk 0:02:53.9]} 8. Bc4 {[%clk 0:03:03.2]}
8... b5 {[%clk 0:02:43.8]} 9. Ba2 {[%clk 0:03:03.6]} 9... Bb7 {[%clk 0:02:44.7]}
10. h3 {[%clk 0:02:49.3]} 10... Re8 {[%clk 0:02:43.9]} 11. Nh2 {[%clk
0:02:47.3]} 11... Nd4 {[%clk 0:02:36.1]} 12. Be3 {[%clk 0:02:46.3]} 12... Bf8
{[%clk 0:02:32.8]} 13. f4 {[%clk 0:02:42.2]} 13... d6 {[%clk 0:02:22.2]} 14. Ng4
{[%clk 0:02:31.2]} 14... Nxg4 {[%clk 0:02:06.3]} 15. Qxg4 {[%clk 0:02:31.4]}
15... Bc8 {[%clk 0:02:01.5]} 16. Qd1 {[%clk 0:02:29.7]} 16... Be6 {[%clk
0:02:02.2]} 17. Nd5 {[%clk 0:02:15.1]} 17... c6 {[%clk 0:01:59.1]} 18. f5 {[%clk
0:02:15.9]} 18... Nxf5 {[%clk 0:01:47.8]} 19. exf5 {[%clk 0:02:11.9]} 19... Bxd5
{[%clk 0:01:48.9]} 20. Bxd5 {[%clk 0:02:12.9]} 20... cxd5 {[%clk 0:01:50]} 21.
f6 {[%clk 0:02:14.8]} 21... g6 {[%clk 0:01:51.2]} 22. h4 {[%clk 0:02:12.3]}
22... Re6 {[%clk 0:01:49]} 23. Qd2 {[%clk 0:02:07.7]} 23... Rxf6 {[%clk
0:01:48.9]} 24. Bxh6 {[%clk 0:02:07.5]} 24... Rxf1+ {[%clk 0:01:46.2]} 25. Rxf1
{[%clk 0:02:09.4]} 25... Qxh4 {[%clk 0:01:46.8]} 26. Bg5 {[%clk 0:02:07.7]}
26... Qd4+ {[%clk 0:01:47.5]} 27. Kh1 {[%clk 0:02:06.2]} 27... Qg4 {[%clk
0:01:48.5]} 28. c3 {[%clk 0:02:05.7]} 28... Bg7 {[%clk 0:01:47.2]} 29. Be7
{[%clk 0:02:02.3]} 29... Qe6 {[%clk 0:01:47.3]} 30. Bg5 {[%clk 0:02:02.7]} 30...
f6 {[%clk 0:01:47.4]} 31. Bh4 {[%clk 0:01:59.7]} 31... Kf7 {[%clk 0:01:48]} 32.
Kg1 {[%clk 0:01:58.4]} 32... Rh8 {[%clk 0:01:48.2]} 33. Qe3 {[%clk 0:01:58.7]}
33... Rxh4 {[%clk 0:01:47.9]} 0-1

[Event "*** Titled Tuesday 3|2 Blitz"]
[Site "Chess.com"]
[Date "2016.10.04"]
[Round "1"]
[White "Izoria123"]
[Black "BellJackson95"]
[Result "0-1"]
[WhiteElo "2571"]
[BlackElo "2343"]
[TimeControl "180+2"]
[EndTime "11:05:30 PDT"]
[Termination "BellJackson95 won by resignation"]

1. d4 {[%clk 0:03:01.3]} 1... Nf6 {[%clk 0:02:13.1]} 2. Bf4 {[%clk 0:03:00.2]}
2... c5 {[%clk 0:02:11.9]} 3. d5 {[%clk 0:03:00.9]} 3... e6 {[%clk 0:02:12.2]}
4. Nc3 {[%clk 0:03:01.3]} 4... d6 {[%clk 0:02:12.7]} 5. e4 {[%clk 0:03:01.8]}
5... exd5 {[%clk 0:02:13.1]} 6. Nxd5 {[%clk 0:02:59.3]} 6... Nxd5 {[%clk
0:02:13.6]} 7. Qxd5 {[%clk 0:02:58.9]} 7... Nc6 {[%clk 0:02:13.4]} 8. Bb5 {[%clk
0:02:51.9]} 8... Qa5+ {[%clk 0:02:06.5]} 9. Qd2 {[%clk 0:02:37.2]} 9... Qxb5
{[%clk 0:02:02.9]} 10. Nf3 {[%clk 0:02:38.9]} 10... Be7 {[%clk 0:02:00.6]} 11.
Bxd6 {[%clk 0:02:38.5]} 11... Be6 {[%clk 0:01:39.6]} 12. Bxe7 {[%clk 0:02:38.1]}
12... Nxe7 {[%clk 0:01:36.4]} 13. O-O-O {[%clk 0:02:27]} 13... O-O {[%clk
0:01:36.5]} 14. Qg5 {[%clk 0:02:24.9]} 14... Nc6 {[%clk 0:01:24.9]} 15. h4
{[%clk 0:02:24.7]} 15... f6 {[%clk 0:01:12.6]} 16. Qe3 {[%clk 0:02:17.2]} 16...
Bxa2 {[%clk 0:01:11.8]} 17. b3 {[%clk 0:01:52.1]} 17... a5 {[%clk 0:01:11.7]}
18. e5 {[%clk 0:01:37.7]} 18... a4 {[%clk 0:01:10.8]} 19. exf6 {[%clk
0:01:34.3]} 19... Rxf6 {[%clk 0:01:09.8]} 20. bxa4 {[%clk 0:01:18.4]} 20... Qb1+
{[%clk 0:01:04.1]} 21. Kd2 {[%clk 0:01:18.6]} 21... Rd8+ {[%clk 0:01:00.9]} 0-1

[Event "*** Titled Tuesday 3|2 Blitz"]
[Site "Chess.com"]
[Date "2016.10.04"]
[Round "1"]
[White "LuckyTiger"]
[Black "ZEN-22"]
[Result "1-0"]
[WhiteElo "2532"]
[BlackElo "2258"]
[TimeControl "180+2"]
[EndTime "11:06:07 PDT"]
[Termination "LuckyTiger won by resignation"]

1. e4 {[%clk 0:02:53.4]} 1... e6 {[%clk 0:03:01.3]} 2. d4 {[%clk 0:02:53.8]}
2... c5 {[%clk 0:03:02.8]} 3. Nf3 {[%clk 0:02:44.8]} 3... cxd4 {[%clk
0:03:02.9]} 4. Nxd4 {[%clk 0:02:46.7]} 4... Nf6 {[%clk 0:03:04.4]} 5. Nc3 {[%clk
0:02:43.8]} 5... Bb4 {[%clk 0:03:05.1]} 6. e5 {[%clk 0:02:39.5]} 6... Nd5 {[%clk
0:03:05.5]} 7. Bd2 {[%clk 0:01:48.6]} 7... Bxc3 {[%clk 0:03:06]} 8. bxc3 {[%clk
0:01:49.2]} 8... d6 {[%clk 0:03:07.9]} 9. exd6 {[%clk 0:01:29.1]} 9... Qxd6
{[%clk 0:03:07.5]} 10. Bd3 {[%clk 0:01:30.8]} 10... Nf4 {[%clk 0:03:07.5]} 11.
Be4 {[%clk 0:01:27.6]} 11... f5 {[%clk 0:02:55.3]} 12. Bf3 {[%clk 0:01:25.8]}
12... Qe5+ {[%clk 0:02:41.5]} 13. Ne2 {[%clk 0:01:13.9]} 13... O-O {[%clk
0:02:31.3]} 14. Bxf4 {[%clk 0:01:13.5]} 14... Qa5 {[%clk 0:02:31.7]} 15. O-O
{[%clk 0:01:10.6]} 15... e5 {[%clk 0:02:32.2]} 16. Qd5+ {[%clk 0:01:10.9]} 16...
Qxd5 {[%clk 0:02:26.3]} 17. Bxd5+ {[%clk 0:01:12.8]} 17... Kh8 {[%clk
0:02:27.9]} 18. Bxe5 {[%clk 0:01:14.2]} 18... Re8 {[%clk 0:02:29.1]} 19. f4
{[%clk 0:01:14.2]} 19... Nd7 {[%clk 0:02:30.6]} 20. Nd4 {[%clk 0:01:12.3]} 20...
Nxe5 {[%clk 0:02:31.3]} 21. fxe5 {[%clk 0:01:14.2]} 21... Rxe5 {[%clk 0:02:32]}
22. Rae1 {[%clk 0:01:15.6]} 22... Rxe1 {[%clk 0:02:31.7]} 23. Rxe1 {[%clk
0:01:17.5]} 23... Bd7 {[%clk 0:02:31.4]} 24. Re7 {[%clk 0:01:18.5]} 24... Rd8
{[%clk 0:02:25.5]} 25. Bxb7 {[%clk 0:01:19.4]} 25... g6 {[%clk 0:02:25.5]} 26.
g3 {[%clk 0:01:20.5]} 26... f4 {[%clk 0:02:26.1]} 27. gxf4 {[%clk 0:01:21.4]}
27... Bh3 {[%clk 0:02:21.6]} 28. Kf2 {[%clk 0:01:16.4]} 28... Rf8 {[%clk
0:02:22.2]} 29. Kg3 {[%clk 0:01:11.6]} 29... Bc8 {[%clk 0:02:21.7]} 30. Bxc8
{[%clk 0:01:10.1]} 30... Rxc8 {[%clk 0:02:22.1]} 31. Re3 {[%clk 0:01:07.7]}
31... Kg7 {[%clk 0:02:21.8]} 32. f5 {[%clk 0:01:08.2]} 32... g5 {[%clk
0:02:21.1]} 33. h4 {[%clk 0:01:08.1]} 33... gxh4+ {[%clk 0:02:20.3]} 34. Kxh4
{[%clk 0:01:10]} 34... Kf6 {[%clk 0:02:21.9]} 35. Kg4 {[%clk 0:01:10.9]} 35...
h5+ {[%clk 0:02:21.6]} 36. Kf4 {[%clk 0:01:11.6]} 36... Rg8 {[%clk 0:02:22.2]}
37. Re6+ {[%clk 0:01:06.8]} 37... Kf7 {[%clk 0:02:22.9]} 38. Rh6 {[%clk
0:01:07.2]} 38... Rg4+ {[%clk 0:02:22.5]} 39. Ke5 {[%clk 0:01:08.2]} 39... Rg3
{[%clk 0:02:23.9]} 40. Rxh5 {[%clk 0:01:06.8]} 40... Rxc3 {[%clk 0:02:23.8]} 41.
Rh7+ {[%clk 0:01:07.2]} 41... Kg8 {[%clk 0:02:25]} 42. Rd7 {[%clk 0:01:06.4]}
42... Rc5+ {[%clk 0:02:26.9]} 43. Kf6 {[%clk 0:01:07]} 43... Ra5 {[%clk
0:02:25.8]} 44. Ne6 {[%clk 0:01:07.6]} 44... Ra3 {[%clk 0:02:22]} 45. Rd8+
{[%clk 0:01:08.2]} 45... Kh7 {[%clk 0:02:22.8]} 46. Ng5+ {[%clk 0:01:10.1]} 1-0

[Event "*** Titled Tuesday 3|2 Blitz"]
[Site "Chess.com"]
[Date "2016.10.04"]
[Round "1"]
[White "wannabe2700"]
[Black "Frolyanov_D"]
[Result "1-0"]
[WhiteElo "2259"]
[BlackElo "2443"]
[TimeControl "180+2"]
[EndTime "11:06:12 PDT"]
[Termination "wannabe2700 won by resignation"]

1. e4 {[%clk 0:03:01.9]} 1... e5 {[%clk 0:02:59.9]} 2. Nf3 {[%clk 0:03:02.5]}
2... Nf6 {[%clk 0:03:00.7]} 3. Nxe5 {[%clk 0:03:02.3]} 3... d6 {[%clk
0:03:01.6]} 4. Nf3 {[%clk 0:03:03.3]} 4... Nxe4 {[%clk 0:03:02.3]} 5. Nc3 {[%clk
0:03:04.1]} 5... Nxc3 {[%clk 0:03:03]} 6. dxc3 {[%clk 0:03:06]} 6... Be7 {[%clk
0:03:04.5]} 7. Be3 {[%clk 0:03:06.5]} 7... O-O {[%clk 0:03:05.9]} 8. Qd2 {[%clk
0:03:07.8]} 8... Nd7 {[%clk 0:03:05.7]} 9. O-O-O {[%clk 0:03:08.4]} 9... c6
{[%clk 0:03:05.6]} 10. Bd3 {[%clk 0:03:06.6]} 10... Qa5 {[%clk 0:02:48.1]} 11.
Kb1 {[%clk 0:03:07.7]} 11... Nc5 {[%clk 0:02:45.3]} 12. b4 {[%clk 0:03:01.6]}
12... Qa3 {[%clk 0:02:12.4]} 13. bxc5 {[%clk 0:03:01.5]} 13... Be6 {[%clk
0:02:12.7]} 14. c4 {[%clk 0:03:02.6]} 14... dxc5 {[%clk 0:02:10.9]} 15. Qc1
{[%clk 0:03:01.5]} 15... Qa5 {[%clk 0:02:04.1]} 16. Bg5 {[%clk 0:02:55.4]} 16...
f6 {[%clk 0:01:14.3]} 17. Bd2 {[%clk 0:02:55.4]} 17... Qc7 {[%clk 0:00:59.8]}
18. Rhe1 {[%clk 0:02:56.4]} 18... Bf7 {[%clk 0:01:00.3]} 19. Bf4 {[%clk
0:02:57.2]} 19... Qb6+ {[%clk 0:00:51.6]} 20. Qb2 {[%clk 0:02:58.2]} 20... Rfe8
{[%clk 0:00:51.9]} 21. Bf5 {[%clk 0:02:48.2]} 21... Qa6 {[%clk 0:00:33.5]} 22.
Bd7 {[%clk 0:02:44.5]} 22... Qxc4 {[%clk 0:00:34]} 23. Bxe8 {[%clk 0:02:43.6]}
23... Rxe8 {[%clk 0:00:35.9]} 24. Bd6 {[%clk 0:02:35.4]} 24... Bxd6 {[%clk
0:00:35.4]} 25. Rxe8+ {[%clk 0:02:36.2]} 25... Bxe8 {[%clk 0:00:36]} 26. Rxd6
{[%clk 0:02:38.1]} 26... Qf1+ {[%clk 0:00:30.9]} 27. Qc1 {[%clk 0:02:39.2]}
27... Qb5+ {[%clk 0:00:16.9]} 28. Ka1 {[%clk 0:02:40.2]} 28... c4 {[%clk
0:00:10.8]} 29. c3 {[%clk 0:02:38.4]} 29... Bg6 {[%clk 0:00:10.3]} 30. Nd4
{[%clk 0:02:36.9]} 30... Qe5 {[%clk 0:00:07.4]} 31. Rd8+ {[%clk 0:02:37.6]}
31... Kf7 {[%clk 0:00:08.2]} 32. Qe3 {[%clk 0:02:37.2]} 1-0

[Event "*** Titled Tuesday 3|2 Blitz"]
[Site "Chess.com"]
[Date "2016.10.04"]
[Round "1"]
[White "HovmoellerHest"]
[Black "Sanan_Sjugirov"]
[Result "0-1"]
[WhiteElo "2336"]
[BlackElo "2699"]
[TimeControl "180+2"]
[EndTime "11:06:18 PDT"]
[Termination "Sanan_Sjugirov won by resignation"]

1. d4 {[%clk 0:03:00]} 1... Nf6 {[%clk 0:03:00]} 2. c4 {[%clk 0:03:00.8]} 2...
e6 {[%clk 0:03:01.1]} 3. Nc3 {[%clk 0:03:01.7]} 3... Bb4 {[%clk 0:03:01.6]} 4.
Qc2 {[%clk 0:03:02.5]} 4... O-O {[%clk 0:03:00.3]} 5. a3 {[%clk 0:03:02.7]} 5...
Bxc3+ {[%clk 0:03:00.6]} 6. Qxc3 {[%clk 0:03:04.1]} 6... d5 {[%clk 0:02:58.6]}
7. Bg5 {[%clk 0:03:03.1]} 7... c5 {[%clk 0:02:57.1]} 8. cxd5 {[%clk 0:02:46.3]}
8... cxd4 {[%clk 0:02:57.3]} 9. Qxd4 {[%clk 0:02:40.1]} 9... Nc6 {[%clk
0:02:58.3]} 10. Qh4 {[%clk 0:01:44.1]} 10... exd5 {[%clk 0:02:58.8]} 11. Bxf6
{[%clk 0:01:38.4]} 11... gxf6 {[%clk 0:02:59.5]} 12. Nf3 {[%clk 0:01:26.1]}
12... d4 {[%clk 0:02:43.4]} 13. b4 {[%clk 0:01:00.2]} 13... Re8 {[%clk 0:02:33]}
14. Rd1 {[%clk 0:00:37]} 14... d3 {[%clk 0:01:53.5]} 15. e3 {[%clk 0:00:36.1]}
15... Bf5 {[%clk 0:01:51.5]} 16. Qf4 {[%clk 0:00:31.4]} 16... Bg6 {[%clk
0:01:49.7]} 17. Nh4 {[%clk 0:00:29]} 17... Re4 {[%clk 0:01:37.7]} 18. Qg3 {[%clk
0:00:20.2]} 18... Ne5 {[%clk 0:01:38.4]} 19. Nxg6 {[%clk 0:00:20.6]} 19... hxg6
{[%clk 0:01:39.1]} 20. f4 {[%clk 0:00:19.6]} 20... Qb6 {[%clk 0:01:34.7]} 21.
Kf2 {[%clk 0:00:16.2]} 21... Rxe3 {[%clk 0:01:34.8]} 0-1

[Event "*** Titled Tuesday 3|2 Blitz"]
[Site "Chess.com"]
[Date "2016.10.04"]
[Round "1"]
[White "stefanodinn"]
[Black "ftorodent"]
[Result "0-1"]
[WhiteElo "2211"]
[BlackElo "2488"]
[TimeControl "180+2"]
[EndTime "11:06:24 PDT"]
[Termination "ftorodent won by resignation"]

1. e4 {[%clk 0:02:58.6]} 1... e6 {[%clk 0:03:00.6]} 2. d4 {[%clk 0:02:58.9]}
2... d5 {[%clk 0:02:45.7]} 3. Nd2 {[%clk 0:02:59.4]} 3... Be7 {[%clk 0:02:43.2]}
4. c3 {[%clk 0:02:49.6]} 4... c5 {[%clk 0:02:42]} 5. dxc5 {[%clk 0:02:49.3]}
5... Nf6 {[%clk 0:02:39]} 6. Bb5+ {[%clk 0:02:26.5]} 6... Bd7 {[%clk 0:02:36.3]}
7. Qe2 {[%clk 0:02:27.1]} 7... Bxb5 {[%clk 0:02:10.4]} 8. Qxb5+ {[%clk
0:02:27.2]} 8... Qd7 {[%clk 0:02:11.8]} 9. Qxd7+ {[%clk 0:02:17.6]} 9... Nbxd7
{[%clk 0:02:12.7]} 10. exd5 {[%clk 0:02:18.5]} 10... Nxd5 {[%clk 0:02:13.3]} 11.
Ne4 {[%clk 0:02:00.9]} 11... Nxc5 {[%clk 0:02:12]} 12. Nxc5 {[%clk 0:02:01]}
12... Bxc5 {[%clk 0:02:13]} 13. Nf3 {[%clk 0:02:02.6]} 13... Ke7 {[%clk
0:02:11.1]} 14. Ke2 {[%clk 0:02:02.8]} 14... Rhd8 {[%clk 0:02:02.6]} 15. Bd2
{[%clk 0:02:03.1]} 15... f6 {[%clk 0:01:57.2]} 16. c4 {[%clk 0:01:47.7]} 16...
Nb4 {[%clk 0:01:58]} 17. Bxb4 {[%clk 0:01:40.8]} 17... Bxb4 {[%clk 0:01:58.7]}
18. a3 {[%clk 0:01:41.9]} 18... Bd6 {[%clk 0:01:59.3]} 19. b4 {[%clk 0:01:40.2]}
19... b6 {[%clk 0:01:52.5]} 20. Rac1 {[%clk 0:01:20.5]} 20... Rdc8 {[%clk
0:01:40.9]} 21. Rhd1 {[%clk 0:01:17.4]} 21... a5 {[%clk 0:01:42]} 22. bxa5
{[%clk 0:00:42.2]} 22... Rxa5 {[%clk 0:01:42]} 23. Rb1 {[%clk 0:00:40]} 23...
Bc5 {[%clk 0:01:38]} 24. Rd3 {[%clk 0:00:38.1]} 24... Rca8 {[%clk 0:01:38]} 25.
Nd4 {[%clk 0:00:29.7]} 25... Rxa3 {[%clk 0:01:37.6]} 26. Nc6+ {[%clk 0:00:26.3]}
26... Ke8 {[%clk 0:01:38.7]} 27. Rxa3 {[%clk 0:00:19.5]} 27... Rxa3 {[%clk
0:01:39]} 0-1

[Event "*** Titled Tuesday 3|2 Blitz"]
[Site "Chess.com"]
[Date "2016.10.04"]
[Round "1"]
[White "Schemato"]
[Black "GMKrikor"]
[Result "1-0"]
[WhiteElo "2327"]
[BlackElo "2578"]
[TimeControl "180+2"]
[EndTime "11:07:01 PDT"]
[Termination "Schemato won by resignation"]

1. c4 {[%clk 0:03:02]} 1... e5 {[%clk 0:03:00.5]} 2. g3 {[%clk 0:03:02.5]} 2...
Nc6 {[%clk 0:03:00.9]} 3. Nc3 {[%clk 0:03:02.2]} 3... Nf6 {[%clk 0:03:02.1]} 4.
Bg2 {[%clk 0:03:02.3]} 4... h6 {[%clk 0:03:03.7]} 5. h3 {[%clk 0:02:57.8]} 5...
Bc5 {[%clk 0:03:02]} 6. e3 {[%clk 0:02:57]} 6... a6 {[%clk 0:02:57.8]} 7. Nge2
{[%clk 0:02:57.7]} 7... d6 {[%clk 0:02:59.4]} 8. O-O {[%clk 0:02:53.3]} 8... Ba7
{[%clk 0:02:59.5]} 9. d4 {[%clk 0:02:39.6]} 9... O-O {[%clk 0:03:00.6]} 10. a3
{[%clk 0:02:36.5]} 10... Re8 {[%clk 0:03:00.2]} 11. b4 {[%clk 0:02:36.4]} 11...
Bf5 {[%clk 0:02:58.4]} 12. Bb2 {[%clk 0:02:34.9]} 12... Qd7 {[%clk 0:02:48]} 13.
Kh2 {[%clk 0:02:34.9]} 13... Rad8 {[%clk 0:02:49.2]} 14. c5 {[%clk 0:02:25.7]}
14... exd4 {[%clk 0:02:46]} 15. exd4 {[%clk 0:02:24.8]} 15... dxc5 {[%clk
0:02:25.6]} 16. dxc5 {[%clk 0:02:24]} 16... Bd3 {[%clk 0:02:25.9]} 17. Re1
{[%clk 0:01:52.3]} 17... Qf5 {[%clk 0:02:01.5]} 18. Nf4 {[%clk 0:01:45]} 18...
Be4 {[%clk 0:01:53.4]} 19. Nxe4 {[%clk 0:01:23.5]} 19... Nxe4 {[%clk 0:01:53.6]}
20. Qc2 {[%clk 0:01:08.4]} 20... Nxg3 {[%clk 0:00:41.1]} 21. Qc3 {[%clk
0:00:58.5]} 21... Nf1+ {[%clk 0:00:42.6]} 22. Kg1 {[%clk 0:00:49.5]} 22... Ne5
{[%clk 0:00:29.3]} 23. Rxe5 {[%clk 0:00:44.1]} 23... Rxe5 {[%clk 0:00:29.9]} 24.
Qxe5 {[%clk 0:00:44.8]} 24... Qxe5 {[%clk 0:00:30.1]} 25. Bxe5 {[%clk
0:00:45.1]} 25... Nd2 {[%clk 0:00:31.5]} 26. Rd1 {[%clk 0:00:35.9]} 1-0

[Event "*** Titled Tuesday 3|2 Blitz"]
[Site "Chess.com"]
[Date "2016.10.04"]
[Round "1"]
[White "elefante33"]
[Black "Andrejkin"]
[Result "1-0"]
[WhiteElo "2482"]
[BlackElo "2189"]
[TimeControl "180+2"]
[EndTime "11:07:03 PDT"]
[Termination "elefante33 won by resignation"]

1. e4 {[%clk 0:03:02]} 1... c5 {[%clk 0:03:00.8]} 2. Nf3 {[%clk 0:03:02.9]} 2...
d6 {[%clk 0:03:02]} 3. Bb5+ {[%clk 0:03:03.4]} 3... Bd7 {[%clk 0:03:02.1]} 4.
Bxd7+ {[%clk 0:03:04.4]} 4... Qxd7 {[%clk 0:03:04]} 5. c4 {[%clk 0:03:05.4]}
5... Nc6 {[%clk 0:03:04.6]} 6. d4 {[%clk 0:03:05.3]} 6... cxd4 {[%clk
0:03:04.8]} 7. Nxd4 {[%clk 0:03:06.9]} 7... Nf6 {[%clk 0:03:05.8]} 8. Nc3 {[%clk
0:03:08]} 8... g6 {[%clk 0:03:06.7]} 9. b3 {[%clk 0:03:04.7]} 9... Bg7 {[%clk
0:03:07.7]} 10. Bb2 {[%clk 0:03:06]} 10... O-O {[%clk 0:03:07.3]} 11. O-O {[%clk
0:03:06.6]} 11... a6 {[%clk 0:03:02.9]} 12. Nxc6 {[%clk 0:02:38.7]} 12... bxc6
{[%clk 0:03:03.4]} 13. Re1 {[%clk 0:02:35.6]} 13... Qc7 {[%clk 0:02:59.7]} 14.
Qe2 {[%clk 0:02:31]} 14... Nd7 {[%clk 0:02:49.1]} 15. Kh1 {[%clk 0:02:29]} 15...
Rad8 {[%clk 0:02:36.6]} 16. f4 {[%clk 0:02:28.5]} 16... e6 {[%clk 0:02:31.4]}
17. Rad1 {[%clk 0:02:27.8]} 17... Nb6 {[%clk 0:02:22.2]} 18. c5 {[%clk
0:02:14.7]} 18... dxc5 {[%clk 0:02:20.1]} 19. e5 {[%clk 0:02:16.3]} 19... Bh6
{[%clk 0:01:59.8]} 20. g3 {[%clk 0:02:07.6]} 20... c4 {[%clk 0:02:00.4]} 21.
bxc4 {[%clk 0:02:06.9]} 21... c5 {[%clk 0:02:01.5]} 22. Ne4 {[%clk 0:02:06.5]}
22... Qc6 {[%clk 0:01:55.9]} 23. Kg1 {[%clk 0:02:05.8]} 23... Qa4 {[%clk
0:01:19.7]} 24. Nd6 {[%clk 0:01:51.3]} 24... a5 {[%clk 0:00:50.5]} 25. Bc3
{[%clk 0:01:45.2]} 25... Ra8 {[%clk 0:00:26.6]} 26. Rb1 {[%clk 0:01:42.9]} 26...
Qc6 {[%clk 0:00:27.4]} 27. Qg2 {[%clk 0:01:38.8]} 27... Qxg2+ {[%clk 0:00:24.2]}
28. Kxg2 {[%clk 0:01:39.9]} 28... Na4 {[%clk 0:00:26.1]} 29. Bd2 {[%clk
0:01:36.3]} 29... Rfb8 {[%clk 0:00:23.9]} 30. Rb5 {[%clk 0:01:29.3]} 30... Bf8
{[%clk 0:00:22.7]} 31. Reb1 {[%clk 0:01:23.4]} 31... Rxb5 {[%clk 0:00:22.7]} 32.
Rxb5 {[%clk 0:01:23.2]} 32... Bxd6 {[%clk 0:00:22.4]} 33. exd6 {[%clk
0:01:24.4]} 33... Ra6 {[%clk 0:00:23.6]} 34. Rb8+ {[%clk 0:01:24.2]} 34... Kg7
{[%clk 0:00:24.2]} 35. d7 {[%clk 0:01:25.7]} 1-0

[Event "*** Titled Tuesday 3|2 Blitz"]
[Site "Chess.com"]
[Date "2016.10.04"]
[Round "1"]
[White "Carolina-moon"]
[Black "jncool68"]
[Result "1-0"]
[WhiteElo "2161"]
[BlackElo "2420"]
[TimeControl "180+2"]
[EndTime "11:07:06 PDT"]
[Termination "Carolina-moon won by resignation"]

1. e4 {[%clk 0:03:01.3]} 1... c5 {[%clk 0:03:00.7]} 2. Nc3 {[%clk 0:03:01.2]}
2... d6 {[%clk 0:03:01.3]} 3. f4 {[%clk 0:02:56]} 3... g6 {[%clk 0:03:01.1]} 4.
Nf3 {[%clk 0:02:56.8]} 4... Bg7 {[%clk 0:02:59.5]} 5. Bb5+ {[%clk 0:02:57.7]}
5... Bd7 {[%clk 0:02:57.3]} 6. Bxd7+ {[%clk 0:02:52.3]} 6... Qxd7 {[%clk
0:02:59.2]} 7. O-O {[%clk 0:02:54]} 7... Nc6 {[%clk 0:02:59.8]} 8. d3 {[%clk
0:02:55.3]} 8... Nf6 {[%clk 0:03:00.3]} 9. Qe1 {[%clk 0:02:52.5]} 9... Nd4
{[%clk 0:03:00.8]} 10. Nxd4 {[%clk 0:02:51.5]} 10... cxd4 {[%clk 0:03:02.7]} 11.
Ne2 {[%clk 0:02:52.6]} 11... Rc8 {[%clk 0:02:46.2]} 12. Nxd4 {[%clk 0:02:42.4]}
12... e5 {[%clk 0:02:45.2]} 13. Nf3 {[%clk 0:02:35.8]} 13... Rxc2 {[%clk
0:02:44.2]} 14. fxe5 {[%clk 0:02:35.5]} 14... dxe5 {[%clk 0:02:45.4]} 15. Bg5
{[%clk 0:02:11.3]} 15... Nh5 {[%clk 0:02:40.8]} 16. Rf2 {[%clk 0:02:01.4]} 16...
Rxf2 {[%clk 0:02:37.6]} 17. Qxf2 {[%clk 0:02:00.3]} 17... O-O {[%clk 0:02:38.5]}
18. Qxa7 {[%clk 0:01:35.9]} 18... Qxd3 {[%clk 0:02:38.2]} 19. Re1 {[%clk
0:01:34.9]} 19... Nf4 {[%clk 0:02:34]} 20. Bxf4 {[%clk 0:01:33.1]} 20... exf4
{[%clk 0:02:34.7]} 21. Qxb7 {[%clk 0:01:33.7]} 21... Rd8 {[%clk 0:02:30.6]} 22.
e5 {[%clk 0:01:25.6]} 22... Bf8 {[%clk 0:02:23.6]} 23. b4 {[%clk 0:01:16.1]}
23... Qc3 {[%clk 0:02:18.6]} 24. a3 {[%clk 0:01:05.2]} 24... Qxa3 {[%clk
0:02:16.1]} 25. Ng5 {[%clk 0:01:03.6]} 25... Bg7 {[%clk 0:01:28.6]} 26. Qxf7+
{[%clk 0:00:59.8]} 26... Kh8 {[%clk 0:01:29.6]} 27. Ne6 {[%clk 0:00:56.3]} 27...
Rg8 {[%clk 0:01:22.5]} 28. Nxg7 {[%clk 0:00:56.3]} 28... Qxb4 {[%clk 0:01:17.8]}
29. Rd1 {[%clk 0:00:46.8]} 29... Qc5+ {[%clk 0:01:15.8]} 30. Kh1 {[%clk
0:00:46.4]} 30... Rf8 {[%clk 0:00:56.8]} 31. Ne6 {[%clk 0:00:40.5]} 31... Rxf7
{[%clk 0:00:54.4]} 32. Nxc5 {[%clk 0:00:41.6]} 32... Re7 {[%clk 0:00:55.3]} 33.
e6 {[%clk 0:00:42.1]} 33... Kg7 {[%clk 0:00:56.4]} 34. Rd7 {[%clk 0:00:42.2]}
34... Kf6 {[%clk 0:00:58]} 35. Rxe7 {[%clk 0:00:42.6]} 35... Kxe7 {[%clk
0:00:59.9]} 36. Kg1 {[%clk 0:00:44]} 1-0